fUSD/lending_fUSD_20241207
["ID","MTS","AMOUNT","RATE_DAILY","PERIOD"]
[344567707,1733553065312,-2421.76,0.00012999,2]
[344567708,1733553065321,-1584.54,0.00012999,2]
[344567709,1733553065330,-2421.76,0.00012999,2]
[344567710,1733553065339,-2421.76,0.00012999,2]
[344567711,1733553065348,-1584.54,0.00012999,2]
[344567712,1733553065357,-2421.76,0.00012999,2]
[344567713,1733553065366,-1584.54,0.00012999,2]
[344567714,1733553065375,-1584.54,0.00012999,2]
[344567715,1733553065384,-2421.76,0.00012999,2]
[344567716,1733553065394,-1584.54,0.00012999,2]
[344567717,1733553065403,-1584.54,0.00012999,2]
[344567718,1733553065416,-2421.76,0.00012999,2]
[344567719,1733553065426,-1584.54,0.00012999,2]
[344567720,1733553065435,-2421.76,0.00012999,2]
[344567721,1733553065445,-1584.54,0.00012999,2]
[344567722,1733553065456,-2421.76,0.00012999,2]
[344567723,1733553065466,-1584.54,0.00012999,2]
[344567724,1733553065476,-2421.76,0.00012999,2]
[344567725,1733553065485,-1584.54,0.00012999,2]
[344567726,1733553065496,-2421.76,0.00012999,2]
[344567727,1733553065506,-1584.58028395,0.00012999,2]
[344567728,1733553065516,-2421.76,0.00012999,2]
[344567729,1733553065526,-2421.76,0.00012999,2]
[344567730,1733553065535,-843.38,0.00012999,2]
[344567731,1733553065545,-2421.82334885,0.00012999,2]
[344567732,1733553065556,-843.38,0.00012999,2]
[344567733,1733553065565,-843.38,0.00012999,2]
[344567734,1733553065575,-843.38,0.00012999,2]
[344567735,1733553065584,-843.38,0.00012999,2]
[344567736,1733553065594,-843.38,0.00012999,2]
[344567737,1733553065604,-843.38,0.00012999,2]
[344567738,1733553065614,-843.38,0.00012999,2]
[344567739,1733553065624,-843.38,0.00012999,2]
[344567740,1733553065633,-843.38,0.00012999,2]
[344567741,1733553065644,-843.38,0.00012999,2]
[344567742,1733553065653,-843.38,0.00012999,2]
[344567743,1733553065663,-843.38,0.00012999,2]
[344567744,1733553065672,-620.04,0.00012999,2]
[344567745,1733553065682,-843.38,0.00012999,2]
[344567746,1733553065691,-620.04,0.00012999,2]
[344567747,1733553065701,-843.38,0.00012999,2]
[344567748,1733553065710,-620.04,0.00012999,2]
[344567749,1733553065720,-843.38,0.00012999,2]
[344567750,1733553065729,-620.04,0.00012999,2]
[344567751,1733553065740,-843.38,0.00012999,2]
[344567752,1733553065749,-843.38,0.00012999,2]
[344567753,1733553065759,-620.04,0.00012999,2]
[344567754,1733553065768,-843.50397092,0.00012999,2]
[344567755,1733553065778,-620.04,0.00012999,2]
[344567756,1733553065788,-620.04,0.00012999,2]
[344567757,1733553065797,-620.04,0.00012999,2]
[344567758,1733553065807,-620.04,0.00012999,2]
[344567759,1733553065817,-620.04,0.00012999,2]
[344567760,1733553065826,-620.04,0.00012999,2]
[344567761,1733553065836,-620.04,0.00012999,2]
[344567762,1733553065846,-620.04,0.00012999,2]
[344567763,1733553065855,-620.04,0.00012999,2]
[344567764,1733553065867,-620.04,0.00012999,2]
[344567765,1733553065877,-620.04,0.00012999,2]
[344567766,1733553065887,-620.04,0.00012999,2]
[344567767,1733553065899,-620.04,0.00012999,2]
[344567768,1733553065910,-620.27,0.00012999,2]
[344567769,1733553065920,-500.0,0.00012999,2]
[344567770,1733553065930,-500.0,0.00012999,2]
[344567771,1733553065941,-500.0,0.00012999,2]
[344567772,1733553065951,-500.0,0.00012999,2]
[344567773,1733553065962,-500.0,0.00012999,2]
[344567774,1733553065972,-500.0,0.00012999,2]
[344567775,1733553065982,-519.25,0.00012999,2]
[344567776,1733553065992,-203.20789001,0.00012999,2]
[344567777,1733553066002,-500.0,0.00012999,2]
[344567778,1733553066012,-613.26,0.00012999,2]
[344567779,1733553066022,-500.0,0.00012999,2]
[344567780,1733553066032,-500.0,0.00012999,2]
[344567781,1733553066042,-500.0,0.00012999,2]
[344567782,1733553066052,-500.0,0.00012999,2]
[344567783,1733553066062,-500.0,0.00012999,2]
[344567784,1733553066072,-500.0,0.00012999,2]
[344567785,1733553066081,-500.0,0.00012999,2]
[344567786,1733553066091,-500.0,0.00012999,2]
[344567787,1733553066100,-500.0,0.00012999,2]
[344567788,1733553066111,-500.0,0.00012999,2]
[344567789,1733553066121,-500.0,0.00012999,2]
[344567790,1733553066131,-240.41961194,0.00012999,2]
[344567791,1733553066141,-500.0,0.00012999,2]
[344567792,1733553066151,-188.57,0.00012999,2]
[344567793,1733553066161,-645.96,0.00012999,2]
[344567794,1733553066171,-645.96,0.00012999,2]
[344567795,1733553066181,-645.96,0.00012999,2]
[344567796,1733553066191,-645.96,0.00012999,2]
[344567797,1733553066201,-645.96,0.00012999,2]
[344567798,1733553066211,-645.96,0.00012999,2]
[344567799,1733553066221,-645.96,0.00012999,2]
[344567800,1733553066231,-645.96,0.00012999,2]
[344567801,1733553066241,-645.96,0.00012999,2]
[344567802,1733553066251,-645.96,0.00012999,2]
[344567803,1733553066261,-645.96,0.00012999,2]
[344567804,1733553066271,-645.96,0.00012999,2]
[344567805,1733553066282,-645.96,0.00012999,2]
[344567806,1733553066292,-645.96,0.00012999,2]
[344567807,1733553066302,-645.96,0.00012999,2]
[344567808,1733553066312,-645.96,0.00012999,2]
[344567809,1733553066322,-646.05271897,0.00012999,2]
[344567810,1733553066332,-500.0,0.00012999,2]
[344567811,1733553066342,-177.14,0.00012999,2]
[344567812,1733553066352,-500.0,0.00012999,2]
[344567813,1733553066362,-500.0,0.00012999,2]
[344567814,1733553066372,-500.0,0.00012999,2]
[344567815,1733553066382,-500.0,0.00012999,2]
[344567816,1733553066391,-500.0,0.00012999,2]
[344567817,1733553066402,-514.47,0.00012999,2]
[344567818,1733553066414,-514.47,0.00012999,2]
[344567819,1733553066424,-514.47,0.00012999,2]
[344567820,1733553066434,-351.74,0.00012999,2]
[344567821,1733553066444,-514.47,0.00012999,2]
[344567822,1733553066454,-514.47,0.00012999,2]
[344567823,1733553066463,-514.47,0.00012999,2]
[344567824,1733553066473,-514.47,0.00012999,2]
[344567825,1733553066483,-514.47,0.00012999,2]
[344567826,1733553066492,-514.47,0.00012999,2]
[344567827,1733553066502,-514.47,0.00012999,2]
[344567828,1733553066512,-514.47,0.00012999,2]
[344567829,1733553066522,-514.47,0.00012999,2]
[344567830,1733553066533,-514.47,0.00012999,2]
[344567831,1733553066543,-500.0,0.00012999,2]
[344567832,1733553066553,-514.47,0.00012999,2]
[344567833,1733553066563,-642.81,0.00012999,2]
[344567834,1733553066573,-514.47,0.00012999,2]
[344567835,1733553066583,-830.11,0.00012999,2]
[344567836,1733553066593,-514.47,0.00012999,2]
[344567837,1733553066602,-830.11,0.00012999,2]
[344567838,1733553066612,-500.0,0.00012999,2]
[344567839,1733553066622,-514.47,0.00012999,2]
[344567840,1733553066633,-830.11,0.00012999,2]
[344567841,1733553066643,-500.0,0.00012999,2]
[344567842,1733553066654,-830.11,0.00012999,2]
[344567843,1733553066665,-500.0,0.00012999,2]
[344567844,1733553066675,-830.11,0.00012999,2]
[344567845,1733553066685,-500.0,0.00012999,2]
[344567846,1733553066695,-830.11,0.00012999,2]
[344567847,1733553066706,-500.0,0.00012999,2]
[344567848,1733553066715,-830.11,0.00012999,2]
[344567849,1733553066726,-500.0,0.00012999,2]
[344567850,1733553066736,-830.11,0.00012999,2]
[344567851,1733553066747,-500.0,0.00012999,2]
[344567852,1733553066757,-830.11,0.00012999,2]
[344567853,1733553066767,-500.0,0.00012999,2]
[344567854,1733553066777,-830.11,0.00012999,2]
[344567855,1733553066787,-500.0,0.00012999,2]
[344567856,1733553066796,-830.11,0.00012999,2]
[344567857,1733553066806,-582.11,0.00012999,2]
[344567858,1733553066815,-830.11,0.00012999,2]
[344567859,1733553066825,-830.11,0.00012999,2]
[344567860,1733553066835,-830.11,0.00012999,2]
[344567861,1733553066845,-830.11,0.00012999,2]
[344567862,1733553066854,-830.11,0.00012999,2]
[344567863,1733553066864,-830.18,0.00012999,2]
[344567864,1733553066873,-500.0,0.00012999,2]
[344567865,1733553066883,-314.62,0.00012999,2]
[344567866,1733553066893,-500.0,0.00012999,2]
[344567867,1733553066905,-500.0,0.00012999,2]
[344567868,1733553066915,-500.0,0.00012999,2]
[344567869,1733553066925,-500.0,0.00012999,2]
[344567870,1733553066936,-500.0,0.00012999,2]
[344567871,1733553066946,-500.0,0.00012999,2]
[344567872,1733553066956,-500.0,0.00012999,2]
[344567873,1733553066967,-602.32,0.00012999,2]
[344567874,1733553066977,-500.0,0.00012999,2]
[344567875,1733553066986,-500.0,0.00012999,2]
[344567876,1733553066996,-500.0,0.00012999,2]
[344567877,1733553067006,-500.0,0.00012999,2]
[344567878,1733553067016,-500.0,0.00012999,2]
[344567879,1733553067027,-500.0,0.00012999,2]
[344567880,1733553067037,-500.0,0.00012999,2]
[344567881,1733553067046,-500.0,0.00012999,2]
[344567882,1733553067056,-500.0,0.00012999,2]
[344567883,1733553067065,-500.0,0.00012999,2]
[344567884,1733553067075,-500.0,0.00012999,2]
[344567885,1733553067085,-500.0,0.00012999,2]
[344567886,1733553067095,-500.0,0.00012999,2]
[344567887,1733553067105,-385.77334628,0.00012999,2]
[344567888,1733553067115,-500.0,0.00012999,2]
[344567889,1733553067124,-500.0,0.00012999,2]
[344567890,1733553067134,-500.0,0.00012999,2]
[344567891,1733553067143,-500.0,0.00012999,2]
[344567892,1733553067154,-500.0,0.00012999,2]
[344567893,1733553067164,-500.0,0.00012999,2]
[344567894,1733553067173,-500.0,0.00012999,2]
[344567895,1733553067183,-500.0,0.00012999,2]
[344567896,1733553067192,-500.0,0.00012999,2]
[344567897,1733553067203,-500.0,0.00012999,2]
[344567898,1733553067212,-500.0,0.00012999,2]
[344567899,1733553067222,-500.0,0.00012999,2]
[344567900,1733553067232,-500.0,0.00012999,2]
[344567901,1733553067241,-500.0,0.00012999,2]
[344567902,1733553067251,-500.0,0.00012999,2]
[344567903,1733553067261,-500.0,0.00012999,2]
[344567904,1733553067271,-408.08,0.00012999,2]
[344567905,1733553067280,-4034551.71590656,0.00013,2]
[344567906,1733553067290,-156.6,0.00013,2]
[344567907,1733553067299,-202.2,0.00013,2]
[344567908,1733553067309,-151.0,0.00013,2]
[344567909,1733553067319,-151.0,0.00013,2]
[344567910,1733553067329,-151.0,0.00013,2]
[344567911,1733553067338,-151.0,0.00013,2]
[344567912,1733553067348,-271.971119,0.00013,2]
[344567913,1733553067358,-271.971119,0.00013,2]
[344567914,1733553067367,-823.7445,0.00013,2]
[344567915,1733553067376,-331.519853,0.00013,2]
[344567916,1733553067386,-331.519853,0.00013,2]
[344567917,1733553067397,-225111.66000001,0.00013,2]
[344567918,1733553067408,-633.8886,0.00013,2]
[344567919,1733553067418,-1000.0,0.00013,2]
[344567920,1733553067427,-768.25,0.00013021,2]
[344567921,1733553067437,-563.0,0.00013088,2]
[344567922,1733553067447,-1894.0,0.00013088,2]
[344567923,1733553067457,-1252.0,0.00013088,2]
[344567924,1733553067467,-816.0,0.00013088,2]
[344567925,1733553067476,-3761.0,0.00013088,2]
[344567926,1733553067486,-3530.0,0.00013088,2]
[344567927,1733553067495,-535.0,0.00013088,2]
[344567928,1733553067505,-978.0,0.00013088,2]
[344567929,1733553067515,-1098.0,0.00013088,2]
[344567930,1733553067525,-5964.0,0.00013088,2]
[344567931,1733553067535,-567.0,0.00013088,2]
[344567932,1733553067545,-1262.0,0.00013088,2]
[344567933,1733553067556,-276.918,0.00013088,2]
[344567934,1733553067566,-634.0,0.00013088,2]
[344567935,1733553067576,-1167.0,0.00013088,2]
[344567936,1733553067586,-13716.0,0.00013088,2]
[344567937,1733553067596,-180.02,0.000131,2]
[344567938,1733553067605,-500.0,0.00013136,2]
[344567939,1733553067615,-262.34,0.00013143,2]
[344567940,1733553067630,-975.41,0.00013143,2]
[344567941,1733553067639,-975.41,0.00013143,2]
[344567942,1733553067652,-975.41,0.00013143,2]
[344567943,1733553067665,-975.41,0.00013143,2]
[344567944,1733553067676,-975.64,0.00013143,2]
[344567945,1733553067686,-500.0,0.00013143,2]
[344567946,1733553067697,-500.0,0.00013143,2]
[344567947,1733553067707,-316.34,0.00013143,2]
[344567948,1733553067718,-559.87,0.00013143,2]
[344567949,1733553067729,-559.87,0.00013143,2]
[344567950,1733553067742,-559.87,0.00013143,2]
[344567951,1733553067753,-559.87,0.00013143,2]
[344567952,1733553067763,-560.05,0.00013143,2]
[344567953,1733553067773,-500.0,0.00013143,2]
[344567954,1733553067784,-500.0,0.00013143,2]
[344567955,1733553067795,-500.0,0.00013143,2]
[344567956,1733553067806,-500.0,0.00013143,2]
[344567957,1733553067816,-341.17,0.00013143,2]
[344567958,1733553067826,-500.0,0.00013143,2]
[344567959,1733553067836,-500.0,0.00013143,2]
[344567960,1733553067847,-500.0,0.00013143,2]
[344567961,1733553067858,-321.46,0.00013143,2]
[344567962,1733553067867,-735.47,0.00013143,2]
[344567963,1733553067878,-735.47,0.00013143,2]
[344567964,1733553067888,-735.47,0.00013143,2]
[344567965,1733553067899,-735.47,0.00013143,2]
[344567966,1733553067908,-735.47468232,0.00013143,2]
[344567967,1733553067917,-671.41,0.00013143,2]
[344567968,1733553067927,-671.41,0.00013143,2]
[344567969,1733553067936,-671.41,0.00013143,2]
[344567970,1733553067946,-671.41,0.00013143,2]
[344567971,1733553067955,-671.51926924,0.00013143,2]
[344567972,1733553067965,-529.08,0.00013143,2]
[344567973,1733553067974,-529.08,0.00013143,2]
[344567974,1733553067984,-529.08,0.00013143,2]
[344567975,1733553067993,-529.08,0.00013143,2]
[344567976,1733553068003,-529.30880637,0.00013143,2]
[344567977,1733553068012,-257.71,0.00013143,2]
[344567978,1733553068022,-739.32,0.00013143,2]
[344567979,1733553068032,-739.32,0.00013143,2]
[344567980,1733553068043,-739.32,0.00013143,2]
[344567981,1733553068054,-739.32,0.00013143,2]
[344567982,1733553068065,-739.44,0.00013143,2]
[344567983,1733553068228,-500.0,0.00013143,2]
[344567984,1733553068238,-197.14,0.00013143,2]
[344567985,1733553068247,-500.0,0.00013144,2]
[344567986,1733553068257,-500.0,0.00013144,2]
[344567987,1733553068266,-500.0,0.00013273,2]
[344567988,1733553068275,-257.0,0.0001333,2]
[344567989,1733553068284,-255.0,0.00013406,2]
[344567990,1733553068294,-500.0,0.0001341,2]
[344567991,1733553068304,-150.0,0.00013412,2]
[344567992,1733553068314,-500.0,0.00013418,2]
[344567993,1733553068323,-500.0,0.00013418,2]
[344567994,1733553068332,-500.0,0.00013418,2]
[344567995,1733553068341,-514.47,0.00013418,2]
[344567996,1733553068351,-334.28917499,0.00013421,2]
[344567997,1733553068360,-5800.0,0.0001352,2]
[344567998,1733553068369,-5800.0,0.0001352,2]
[344567999,1733553068378,-175.65,0.00013522,2]
[344568000,1733553068387,-154.86,0.00013524,2]
[344568001,1733553068398,-5800.0,0.00013529,2]
[344568002,1733553068409,-5800.0,0.00013529,2]
[344568003,1733553068421,-2526.76895662,0.00013537,2]
[344568004,1733553068430,-505.35379133,0.00013537,2]
[344568005,1733553068439,-5800.0,0.00013537,2]
[344568006,1733553068449,-5800.0,0.00013537,2]
[344568007,1733553068458,-500.0,0.00013547,2]
[344568008,1733553068468,-1056.0,0.0001366,2]
[344568009,1733553068477,-500.0,0.00013684,2]
[344568010,1733553068487,-500.0,0.00013692,2]
[344568011,1733553068496,-500.0,0.00013692,2]
[344568012,1733553068505,-2184.15,0.00013698,2]
[344568013,1733553068514,-2184.15,0.00013698,2]
[344568014,1733553068524,-2184.15,0.00013698,2]
[344568015,1733553068533,-2184.15,0.00013698,2]
[344568016,1733553068542,-2184.15,0.00013698,2]
[344568017,1733553068551,-2184.15,0.00013698,2]
[344568018,1733553068560,-2184.15,0.00013698,2]
[344568019,1733553068569,-2184.15,0.00013698,2]
[344568020,1733553068579,-2184.15,0.00013698,2]
[344568021,1733553068588,-2184.15,0.00013698,2]
[344568022,1733553068596,-2184.15,0.00013698,2]
[344568023,1733553068606,-2184.15,0.00013698,2]
[344568024,1733553068615,-2184.15,0.00013698,2]
[344568025,1733553068624,-2184.15,0.00013698,2]
[344568026,1733553068633,-2184.15,0.00013698,2]
[344568027,1733553068643,-2184.15,0.00013698,2]
[344568028,1733553068654,-2184.15,0.00013698,2]
[344568029,1733553068663,-2184.15,0.00013698,2]
[344568030,1733553068672,-2184.15,0.00013698,2]
[344568031,1733553068681,-2184.15,0.00013698,2]
[344568032,1733553068690,-2184.15,0.00013698,2]
[344568033,1733553068700,-2184.15,0.00013698,2]
[344568034,1733553068710,-2184.15,0.00013698,2]
[344568035,1733553068719,-2184.28216255,0.00013698,2]
[344568036,1733553068729,-2000.0,0.00013699,2]
[344568037,1733553068738,-2000.0,0.00013699,2]
[344568038,1733553068747,-2000.0,0.00013699,2]
[344568039,1733553068756,-2000.0,0.00013699,2]
[344568040,1733553068766,-2000.0,0.00013699,2]
[344568041,1733553068775,-500.0,0.00013699,2]
[344568042,1733553068785,-500.0,0.00013699,2]
[344568043,1733553068794,-500.0,0.00013699,2]
[344568044,1733553068803,-500.0,0.00013699,2]
[344568045,1733553068813,-500.0,0.00013699,2]
[344568046,1733553068822,-500.0,0.00013699,2]
[344568047,1733553068831,-500.0,0.00013699,2]
[344568048,1733553068840,-500.0,0.00013699,2]
[344568049,1733553068849,-500.0,0.00013699,2]
[344568050,1733553068859,-500.0,0.00013699,2]
[344568051,1733553068868,-500.0,0.00013699,2]
[344568052,1733553068877,-500.0,0.00013699,2]
[344568053,1733553068886,-500.0,0.00013699,2]
[344568054,1733553068897,-500.0,0.00013699,2]
[344568055,1733553068906,-500.0,0.00013699,2]
[344568056,1733553068915,-500.0,0.00013699,2]
[344568057,1733553068924,-7000.0,0.00013699,2]
[344568058,1733553068933,-150.0,0.00013699,2]
[344568059,1733553068944,-323.14504,0.00013699,2]
[344568060,1733553068953,-323.14504,0.00013699,2]
[344568061,1733553068962,-169.324161,0.00013699,2]
[344568062,1733553068972,-169.324161,0.00013699,2]
[344568063,1733553068981,-169.324161,0.00013699,2]
[344568064,1733553068990,-169.324161,0.00013699,2]
[344568065,1733553068999,-500.0,0.00013699,2]
[344568066,1733553069009,-200.0,0.00013699,2]
[344568067,1733553069019,-314.18697818,0.00013699,2]
[344568068,1733553069028,-500.0,0.00013699,2]
[344568069,1733553069038,-503.76938982,0.00013699,2]
[344568070,1733553069048,-515.35420744,0.00013699,2]
[344568071,1733553069058,-514.28951052,0.00013699,2]
[344568072,1733553069067,-3866.74,0.00013699,2]
[344568073,1733553069077,-236.23,0.000137,2]
[344568074,1733553069086,-236.23,0.000137,2]
[344568075,1733553069096,-236.23,0.000137,2]
[344568076,1733553069105,-236.23,0.000137,2]
[344568077,1733553069114,-236.23,0.000137,2]
[344568078,1733553069123,-236.23,0.000137,2]
[344568079,1733553069132,-236.23,0.000137,2]
[344568080,1733553069141,-236.23,0.000137,2]
[344568081,1733553069152,-236.23,0.000137,2]
[344568082,1733553069161,-236.23,0.000137,2]
[344568083,1733553069170,-1201.79,0.000137,2]
[344568084,1733553069180,-1201.79,0.000137,2]
[344568085,1733553069189,-1201.79,0.000137,2]
[344568086,1733553069198,-1201.79,0.000137,2]
[344568087,1733553069207,-1201.79,0.000137,2]
[344568088,1733553069216,-435.5,0.00013817,2]
[344568089,1733553069226,-1544.34,0.00013817,2]
[344568090,1733553069235,-768.15,0.00013817,2]
[344568091,1733553069246,-768.15,0.00013817,2]
[344568092,1733553069255,-768.15,0.00013817,2]
[344568093,1733553069264,-768.15,0.00013817,2]
[344568094,1733553069274,-1260.38,0.00013817,2]
[344568095,1733553069284,-500.0,0.00013821,2]
[344568096,1733553069293,-500.0,0.00013958,2]
[344568097,1733553069303,-2000.0,0.00013966,2]
[344568098,1733553069312,-500.0,0.00013966,2]
[344568099,1733553069321,-500.0,0.00013966,2]
[344568100,1733553069330,-500.0,0.00013966,2]
[344568101,1733553069339,-500.0,0.00013966,2]
[344568102,1733553069349,-500.0,0.00013966,2]
[344568103,1733553069358,-305.91,0.00013966,2]
[344568104,1733553069367,-514.47,0.00013966,2]
[344568105,1733553069377,-514.47,0.00013966,2]
[344568106,1733553069386,-514.47,0.00013966,2]
[344568107,1733553069395,-514.47,0.00013966,2]
[344568108,1733553069406,-514.54047768,0.00013966,2]
[344568109,1733553069418,-151.0,0.00013967,2]
[344568110,1733553069427,-151.0,0.00013967,2]
[344568111,1733553069436,-151.0,0.00013967,2]
[344568112,1733553069445,-221.021712,0.00013967,2]
[344568113,1733553069454,-6501.0387463,0.00014,2]
[344568114,1733553069463,-1047.42,0.0001401,2]
[344568115,1733553069473,-691.85,0.0001403,2]
[344568116,1733553069483,-150.0,0.00014059,2]
[344568117,1733553069492,-931.90856034,0.00014066,2]
[344568118,1733553069501,-257.0,0.0001408,2]
[344568119,1733553069511,-500.0,0.00014095,2]
[344568120,1733553069520,-500.0,0.00014232,2]
[344568121,1733553069529,-500.0,0.0001424,2]
[344568122,1733553069539,-546.24,0.0001424,2]
[344568123,1733553069548,-323.14504,0.0001424,2]
[344568124,1733553069558,-323.14504,0.0001424,2]
[344568125,1733553069568,-684.30446116,0.00014247,2]
[344568126,1733553069578,-1000.0,0.00014366,2]
[344568127,1733553069587,-500.0,0.00014369,2]
[344568128,1733553069596,-1056.0,0.00014379,2]
[344568129,1733553069605,-150.0,0.0001442,2]
[344568130,1733553069615,-500.0,0.00014506,2]
[344568131,1733553069625,-500.0,0.00014514,2]
[344568132,1733553069635,-271.971119,0.00014515,2]
[344568133,1733553069644,-271.971119,0.00014515,2]
[344568134,1733553069654,-252.0,0.00014589,2]
[344568135,1733553069664,-500.0,0.00014643,2]
[344568136,1733553069674,-479.93904147,0.00014649,2]
[344568137,1733553069683,-227.35,0.0001478,2]
[344568138,1733553069692,-150.0,0.0001478,2]
[344568139,1733553069702,-192.38,0.00014788,2]
[344568140,1733553069711,-151.0,0.00014789,2]
[344568141,1733553069720,-257.0,0.0001483,2]
[344568142,1733553069729,-175.65,0.00014874,2]
[344568143,1733553069739,-8986.0,0.00015,2]
[344568144,1733553069748,-450.0,0.00015,2]
[344568145,1733553069758,-450.0,0.00015,2]
[344568146,1733553069767,-2000.0,0.00015062,2]
[344568147,1733553069776,-300.0,0.00015068,2]
[344568148,1733553069786,-1056.0,0.00015135,2]
[344568149,1733553069795,-150.0,0.00015141,2]
[344568150,1733553069805,-931.90856034,0.00015233,2]
[344568151,1733553069814,-151.0,0.00015337,2]
[344568152,1733553069823,-169.324161,0.00015337,2]
[344568153,1733553069832,-169.324161,0.00015337,2]
[344568154,1733553069841,-331.519853,0.00015337,2]
[344568155,1733553069851,-331.519853,0.00015337,2]
[344568156,1733553069860,-435.57,0.0001541,2]
[344568157,1733553069869,-435.57,0.0001541,2]
[344568158,1733553069879,-435.57,0.0001541,2]
[344568159,1733553069889,-435.5,0.0001541,2]
[344568160,1733553069898,-1535.88,0.0001541,2]
[344568161,1733553069907,-1534.7,0.0001541,2]
[344568162,1733553069917,-435.5,0.0001541,2]
[344568163,1733553069926,-768.25,0.0001541,2]
[344568164,1733553069936,-768.25,0.0001541,2]
[344568165,1733553069946,-691.85,0.00015433,2]
[344568166,1733553069955,-500.0,0.00015481,2]
[344568167,1733553069964,-150.0,0.00015501,2]
[344568168,1733553069974,-257.0,0.0001558,2]
[344568169,1733553069984,-1000.0,0.00015803,2]
[344568170,1733553069993,-150.0,0.00015862,2]
[344568171,1733553070002,-1056.0,0.00015932,2]
[344568172,1733553070011,-677.24018547,0.00016029,2]
[344568173,1733553070020,-168.94,0.00016058,2]
[344568174,1733553070030,-563.0,0.00016088,2]
[344568175,1733553070039,-1894.0,0.00016088,2]
[344568176,1733553070048,-3528.0,0.00016088,2]
[344568177,1733553070057,-535.0,0.00016088,2]
[344568178,1733553070066,-973.0,0.00016088,2]
[344568179,1733553070076,-5963.0,0.00016088,2]
[344568180,1733553070085,-566.0,0.00016088,2]
[344568181,1733553070094,-1262.0,0.00016088,2]
[344568182,1733553070103,-150.0,0.00016088,2]
[344568183,1733553070113,-634.0,0.00016088,2]
[344568184,1733553070122,-1165.0,0.00016088,2]
[344568185,1733553070131,-9999.99,0.00016116,2]
[344568186,1733553070141,-150.0,0.00016222,2]
[344568187,1733553070152,-175.65,0.00016227,2]
[344568188,1733553070161,-1047.42,0.00016274,2]
[344568189,1733553070171,-257.0,0.0001633,2]
[344568190,1733553070181,-151.0,0.00016368,2]
[344568191,1733553070190,-768.25,0.00016369,2]
[344568192,1733553070200,-479.93904147,0.000164,2]
[344568193,1733553070211,-931.90856034,0.000164,2]
[344568194,1733553070221,-151.0,0.000164,2]
[344568195,1733553070230,-151.0,0.000164,2]
[344568196,1733553070239,-151.0,0.000164,2]
[344568197,1733553070249,-192.14137521,0.000164,2]
[344568198,1733553070259,-151.59399437,0.000164,2]
[344568199,1733553070268,-2504.68277543,0.000164,2]
[344568200,1733553070278,-44962.103834,0.000164,2]
[344568201,1733553070288,-150.0,0.00016419,2]
[344568202,1733553070297,-300.0,0.00016419,2]
[344568203,1733553070307,-150.0,0.00016419,2]
[344568204,1733553070316,-500.0,0.00016438,2]
[344568205,1733553070326,-500.0,0.00016438,2]
[344568206,1733553070335,-500.0,0.00016438,2]